bitfinex-derivatives/quotes_ETHF0:USTF0_20241229
["timestamp","ask_amount","ask_price","bid_price","bid_amount"]
[1735493610296,0.2985,3355.9,3355.8,0.4614]
[1735493611096,3.2078,3356.1,3355.8,0.4614]
[1735493611302,3.2078,3356.1,3356.0,0.29849]
[1735493611498,3.2078,3356.1,3355.9,2.25224977]
[1735493611499,3.2078,3356.5,3356.4,0.29845]
[1735493612296,3.2078,3356.5,3356.0,0.4584]
[1735493612497,0.29847,3356.3,3356.1,0.29848]
[1735493612696,0.29848,3356.2,3356.0,7.4527757]
[1735493613000,3.2078,3356.5,3356.3,0.29846]
[1735493613299,3.50625,3356.5,3356.4,0.4351]
[1735493613703,3.2078,3356.5,3356.4,0.4351]
[1735493613899,3.2078,3356.5,3356.4,0.73355]
[1735493614594,3.50625,3356.5,3356.4,0.73355]
[1735493614899,3.50625,3356.5,3356.4,0.4351]
[1735493615101,3.50625,3356.5,3356.4,0.73355]
[1735493615399,3.2078,3356.5,3356.4,0.73355]
[1735493618302,3.2078,3357.1,3357.0,0.2984]
[1735493618504,3.94807823,3357.4,3357.0,1.195]
[1735493618699,3.94807823,3357.4,3357.1,0.439]
[1735493618700,3.50917823,3357.4,3357.1,0.439]
[1735493618901,3.50917823,3357.4,3357.1,0.8789]
[1735493619201,3.80754823,3357.4,3357.2,0.29838]
[1735493619802,3.50917823,3357.4,3357.1,0.8789]
[1735493620010,0.29836,3357.5,3357.3,0.29837]
[1735493620201,3.2078,3357.6,3357.1,0.8789]
[1735493620402,0.29838,3357.2,3357.1,0.8789]
[1735493620802,0.29838,3357.2,3357.1,1.17729]
[1735493621106,0.29838,3357.3,3357.1,1.17729]
[1735493621605,0.29837,3357.4,3357.2,0.29838]
[1735493622210,0.29838,3357.3,3357.1,1.17729]
[1735493623604,0.29838,3357.3,3357.1,0.8789]
[1735493623808,0.29838,3357.3,3357.2,0.29838]
[1735493624208,0.29838,3357.2,3357.1,0.439]
[1735493624410,3.2078,3357.5,3357.1,0.439]
[1735493624601,0.29837,3357.3,3357.2,0.4486]
[1735493626403,0.29838,3357.2,3357.1,0.439]
[1735493626604,0.4622,3357.4,3356.7,6.9943757]
[1735493626808,0.29842,3356.8,3356.7,6.9943757]
[1735493627412,0.29841,3356.9,3356.7,7.2928057]
[1735493627816,0.29841,3356.9,3356.8,0.29842]
[1735493628417,3.2078,3357.1,3356.8,0.29842]
[1735493628715,0.29841,3356.9,3356.8,0.29842]
[1735493629108,0.2984,3357.0,3356.8,0.29842]
[1735493630513,3.2078,3357.1,3356.6,2.0516]
[1735493630709,3.2078,3357.1,3356.6,1.615]
[1735493631017,0.29843,3356.7,3356.6,1.615]
[1735493631207,0.29842,3356.8,3356.6,1.91343]
[1735493631408,3.2078,3357.1,3356.6,1.615]
[1735493631608,0.29841,3356.9,3356.7,0.29842]
[1735493632808,0.2984,3357.0,3356.9,0.29841]
[1735493635216,3.2078,3357.1,3356.6,8.6093757]
[1735493635410,0.29841,3357.0,3356.9,0.29841]
[1735493635613,0.29842,3356.9,3356.6,8.6093757]
[1735493635813,0.29842,3356.9,3356.8,0.29842]
[1735493636215,3.2078,3357.1,3356.6,8.6093757]
[1735493636419,3.2078,3357.1,3357.0,0.2984]
[1735493636723,0.29841,3357.0,3356.9,0.2984]
[1735493639426,0.29843,3356.7,3356.6,1.615]
[1735493639830,0.76261,3356.9,3356.8,0.29842]
[1735493640123,0.4642,3356.9,3356.8,0.29842]
[1735493642624,3.2078,3357.1,3357.0,0.2984]
[1735493642924,0.2984,3357.0,3356.9,0.7616]
[1735493643926,0.2984,3357.0,3356.9,0.4632]
[1735493644124,0.2984,3357.0,3356.6,8.6093757]
[1735493644323,0.4591,3356.9,3356.6,9.0725757]
[1735493644520,0.4591,3356.9,3356.8,0.29842]
[1735493648026,0.29843,3356.7,3356.6,9.0725757]
[1735493648627,0.29843,3356.7,3356.6,2.0782]
[1735493649228,0.29843,3356.7,3356.5,9.54506547]
[1735493649229,0.29844,3356.6,3356.5,6.9943757]
[1735493649430,3.50624,3356.6,3356.5,6.9943757]
[1735493650131,0.29846,3356.3,3356.2,6.9943757]
[1735493651126,7.55070977,3356.3,3356.2,6.9943757]
[1735493652128,0.2985,3355.9,3355.8,5.17764502]
[1735493652331,3.5063,3355.9,3355.8,5.17764502]
[1735493652532,3.5063,3355.9,3355.8,3.51294502]
[1735493652731,3.5063,3355.9,3355.8,2.60814502]
[1735493653828,0.74632,3355.7,3354.6,0.448]
[1735493654032,0.29861,3354.7,3354.6,0.448]
[1735493656230,3.2078,3355.0,3354.6,0.74661]
[1735493656437,0.29859,3354.9,3354.6,0.74661]
[1735493657028,3.2078,3355.0,3354.9,0.29859]
[1735493657433,3.50865779,3355.6,3354.7,2.67594977]
[1735493657434,3.2078,3355.4,3354.7,2.67594977]
[1735493657630,0.29857,3355.2,3355.0,0.29858]
[1735493658238,0.29857,3355.2,3355.1,0.466]
[1735493658440,0.29856,3355.3,3355.1,0.76457]
[1735493658641,0.29856,3355.3,3355.1,0.466]
[1735493659033,3.50634,3355.4,3355.2,0.29856]
[1735493659238,3.2078,3355.4,3355.2,0.4328]
[1735493659435,0.29851,3355.8,3355.6,0.29852]
[1735493659735,3.5063,3355.9,3355.7,0.29851]
[1735493660131,3.5063,3355.9,3355.4,1.195]
[1735493660335,3.2078,3355.9,3355.5,0.4468]
[1735493660532,3.2078,3355.9,3355.8,0.29851]
[1735493661435,0.29846,3356.4,3356.2,0.29847]
[1735493661642,0.29845,3356.5,3356.2,3.50627]
[1735493662238,5.54270314,3356.7,3356.2,3.2078]
[1735493662536,5.54270314,3356.7,3356.6,0.29844]
[1735493662834,5.54270314,3356.7,3356.6,5.75848977]
[1735493662835,2.33490314,3356.7,3356.6,5.75848977]
[1735493663041,0.29841,3357.0,3356.8,0.29842]
[1735493663234,0.29841,3357.0,3356.6,5.46004977]
[1735493663442,2.33490314,3357.2,3356.6,5.46004977]
[1735493663641,0.29841,3356.9,3356.6,5.46004977]
[1735493663941,0.29842,3356.8,3356.6,5.75847977]
[1735493664542,0.29841,3356.9,3356.7,0.29842]
[1735493664742,0.29842,3356.9,3356.6,2.55067977]
[1735493665044,0.74592,3357.4,3356.6,2.25224977]
[1735493665237,0.2984,3357.1,3356.8,0.29841]
[1735493665442,3.2078,3357.5,3356.8,0.29841]
[1735493665643,0.2984,3357.0,3356.8,0.29841]
[1735493665936,0.2984,3357.0,3356.6,2.25224977]
[1735493665937,3.2078,3357.5,3356.6,2.25224977]
[1735493666137,3.2078,3357.5,3356.6,5.46004977]
[1735493666338,0.2984,3357.0,3356.7,0.29842]
[1735493667040,3.2078,3357.5,3356.6,3.2078]
[1735493667243,0.29843,3356.7,3356.6,3.2078]
[1735493667542,0.74592,3357.4,3356.6,3.2078]
[1735493667742,0.29841,3356.9,3356.7,0.29843]
[1735493668341,0.29841,3357.0,3356.7,0.29843]
[1735493668840,0.29841,3357.0,3356.8,0.29842]
[1735493669041,3.2078,3357.5,3356.9,2.55064977]
[1735493669243,0.29839,3357.1,3356.9,2.55064977]
[1735493673746,0.29839,3357.2,3357.0,0.2984]
[1735493673948,0.29838,3357.3,3356.9,2.25224977]
[1735493674149,0.29838,3357.3,3357.0,0.2984]
[1735493674344,3.2078,3357.5,3356.9,2.25224977]
[1735493674544,3.2078,3357.5,3357.0,0.29839]
[1735493674744,0.29838,3357.3,3357.1,0.29839]
[1735493675050,0.29838,3357.3,3357.2,0.4237]
[1735493675250,0.29838,3357.3,3357.2,0.8888]
[1735493675750,3.2078,3357.5,3357.2,1.18718]
[1735493675940,0.29837,3357.4,3357.2,1.18718]
[1735493676144,3.2078,3357.5,3357.2,0.8888]
[1735493676343,3.2078,3357.5,3357.4,0.29837]
[1735493677253,3.50616,3357.5,3357.4,0.29837]
[1735493678344,3.2078,3357.5,3357.4,0.29837]
[1735493680747,0.29836,3357.6,3357.4,0.29837]
[1735493681345,0.29836,3357.6,3357.5,0.29836]
[1735493681552,3.2078,3357.8,3357.3,0.4356]
[1735493681747,0.29834,3357.7,3357.6,0.29835]
[1735493682146,3.2078,3357.8,3357.3,0.4356]
[1735493682450,0.29835,3357.6,3357.5,0.29835]
[1735493683148,3.2078,3357.8,3357.3,0.4356]
[1735493683452,0.29837,3357.4,3357.3,0.4356]
[1735493684758,0.4449,3357.7,3357.0,3.2078]
[1735493684959,0.29839,3357.1,3357.0,3.2078]
[1735493685252,0.4449,3357.7,3357.0,3.2078]
[1735493685552,0.4449,3357.7,3357.1,1.3389]
[1735493685747,3.2078,3357.8,3357.1,1.3389]
[1735493685952,0.29835,3357.6,3357.5,0.29835]
[1735493686151,0.29835,3357.7,3357.5,0.29835]
[1735493686349,0.29835,3357.6,3357.5,0.29835]
[1735493686551,0.29836,3357.5,3357.4,0.29836]
[1735493687661,0.29835,3357.7,3357.6,0.29835]
[1735493688261,0.29835,3357.6,3357.5,0.29835]
[1735493689957,0.8911,3358.1,3357.2,2.25224977]
[1735493690165,0.29838,3357.3,3357.2,0.29838]
[1735493693959,3.2078,3357.8,3357.1,4.5467]
[1735493694262,0.29838,3357.2,3357.1,4.84509]
[1735493697360,0.29838,3357.2,3357.1,4.5467]
[1735493697569,0.29838,3357.2,3357.1,3.2078]
[1735493700681,5.0,3357.2,3356.3,0.4385]
[1735493700988,0.29845,3356.4,3356.3,0.4385]
[1735493704587,0.29845,3356.4,3356.3,0.73696]
[1735493705184,0.29841,3356.9,3356.6,0.29843]
[1735493705490,6.00320314,3357.0,3356.4,0.4386]
[1735493705787,0.29842,3356.8,3356.7,0.29843]
[1735493705986,0.29842,3356.9,3356.8,0.29841]
[1735493706786,0.29841,3357.0,3356.9,0.29841]
[1735493707362,0.29841,3357.0,3356.8,0.29841]
[1735493708683,0.29841,3357.0,3356.8,4.97964275]
[1735493709292,0.2984,3357.1,3357.0,0.2984]
[1735493709492,0.2984,3357.1,3357.0,0.7467]
[1735493710192,0.2984,3357.1,3357.0,5.42793275]
[1735493711486,0.2984,3357.1,3357.0,5.12953275]
[1735493711687,0.2984,3357.1,3357.0,5.55293275]
[1735493711890,0.2984,3357.1,3357.0,4.68123275]
[1735493712185,0.29839,3357.2,3357.1,0.29839]
[1735493712493,2.77430314,3357.4,3357.0,4.97962275]
[1735493712692,0.29839,3357.1,3357.0,4.97962275]
[1735493713096,0.29839,3357.1,3357.0,4.68123275]
[1735493714196,0.29839,3357.1,3357.0,4.97963275]
[1735493716992,0.29839,3357.1,3357.0,8.18743275]
[1735493717591,0.29839,3357.2,3357.0,7.88903275]
[1735493717792,2.33490314,3357.4,3357.0,7.88903275]
[1735493718000,0.29839,3357.1,3357.0,8.18743275]
[1735493719300,0.29839,3357.1,3357.0,4.97963275]
[1735493720098,0.29839,3357.1,3357.0,4.68123275]
[1735493720995,0.2984,3357.0,3356.9,1.195]
[1735493722004,0.2984,3357.0,3356.9,1.49341]
[1735493722196,0.2984,3357.0,3356.9,1.195]
[1735493723004,0.29841,3356.9,3356.8,7.88903275]
[1735493726912,0.29841,3356.9,3356.8,4.68123275]
[1735493732112,0.29841,3357.0,3356.9,0.2984]
[1735493734307,0.29841,3357.0,3356.9,5.13973423]
[1735493736620,0.29841,3357.0,3356.9,5.43814423]
[1735493738221,0.29841,3357.0,3356.9,12.46509437]
[1735493741223,0.2984,3357.1,3357.0,0.29839]
[1735493742223,0.2984,3357.1,3357.0,1.36515145]
[1735493743016,0.2984,3357.1,3357.0,13.53183582]
[1735493745620,2.33490314,3357.3,3357.2,0.29838]
[1735493745822,2.33490314,3357.3,3357.2,1.36514145]
[1735493746029,3.50865779,3357.4,3357.3,0.29837]
[1735493746333,3.50865779,3357.4,3357.3,1.22327]
[1735493747325,6.99210813,3358.2,3357.3,1.22327]
[1735493747326,2.34497223,3358.0,3357.9,0.29832]
[1735493747550,2.34497223,3358.0,3357.9,3.6258429]
[1735493748352,2.34497223,3358.0,3357.9,3.74401922]
[1735493748755,0.29831,3358.1,3358.0,0.29831]
[1735493749850,0.29831,3358.1,3358.0,4.97807175]
[1735493750053,0.2983,3358.2,3358.0,4.97807175]
[1735493750351,0.2983,3358.2,3358.0,4.67976175]
[1735493750546,0.2983,3358.2,3358.0,4.97807175]
[1735493751255,0.2983,3358.2,3358.0,4.67976175]
[1735493751559,0.29828,3358.4,3358.3,0.29828]
[1735493751756,0.29828,3358.4,3358.2,5.45949922]
[1735493751953,0.2983,3358.1,3358.0,4.67976175]
[1735493752648,0.2983,3358.1,3358.0,4.97807175]
[1735493752853,0.4526,3358.2,3358.1,0.2983]
[1735493752854,0.7509,3358.2,3358.1,0.2983]
[1735493753254,0.4526,3358.2,3358.1,0.2983]
[1735493757255,0.2983,3358.1,3358.0,0.4371]
[1735493757455,0.4526,3358.2,3357.9,1.194]
[1735493757748,0.29831,3358.1,3358.0,0.29831]
[1735493760154,0.4526,3358.2,3357.9,1.194]
[1735493760354,0.2983,3358.1,3358.0,0.29831]
[1735493761154,0.4526,3358.2,3358.0,0.29831]
[1735493761361,0.7509,3358.2,3358.1,0.2983]
[1735493761862,0.29831,3358.1,3358.0,0.29831]
[1735493767263,0.29831,3358.0,3357.9,2.55001922]
[1735493767559,0.4526,3358.2,3357.8,4.4018]
[1735493767761,0.29831,3358.1,3358.0,0.29831]
[1735493768967,0.4526,3358.2,3357.8,3.2078]
[1735493769157,0.7509,3358.2,3358.1,0.2983]
[1735493770064,0.29831,3358.1,3358.0,0.29831]
[1735493772056,0.7509,3358.2,3358.1,0.2983]
[1735493772461,0.2983,3358.2,3358.1,0.2983]
[1735493774267,0.2983,3358.2,3358.1,1.36441928]
[1735493775961,0.455,3358.3,3358.2,0.29829]
[1735493776160,0.455,3358.3,3358.2,1.18599]
[1735493776363,0.455,3358.3,3358.2,1.60959]
[1735493777562,0.75329,3358.3,3358.2,1.60959]
[1735493777970,0.455,3358.3,3358.2,1.60959]
[1735493778465,0.29828,3358.4,3358.2,1.3113]
[1735493778664,0.29828,3358.4,3358.3,1.36440928]
[1735493779562,0.29828,3358.4,3358.3,1.06611928]
[1735493779861,0.29828,3358.4,3358.3,1.36440928]
[1735493783463,0.29828,3358.4,3358.3,1.06611928]
[1735493783669,0.2983,3358.1,3358.0,5.74588103]
[1735493783871,0.2983,3358.1,3358.0,4.67976175]
[1735493784876,3.20237223,3358.2,3357.9,1.06611928]
[1735493785073,3.20237223,3358.2,3357.7,3.2078]
[1735493785268,0.29833,3357.8,3357.7,3.2078]
[1735493788275,0.29833,3357.8,3357.7,3.50614]
[1735493788576,0.75043,3357.9,3357.8,0.29833]
[1735493788877,0.75042,3357.9,3357.8,1.06611928]
[1735493789276,0.29833,3357.8,3357.7,3.2078]
[1735493789874,0.29834,3357.7,3357.6,5.74588103]
[1735493790179,0.74934,3357.7,3357.6,5.74588103]
[1735493790376,0.74934,3357.7,3357.6,1.06611928]
[1735493791778,0.74934,3357.7,3357.6,1.36446928]
[1735493792972,0.74934,3357.7,3357.6,0.29835]
[1735493793170,0.74934,3357.7,3357.6,1.06611928]
[1735493793373,0.451,3357.7,3357.5,4.67976175]
[1735493793569,1.80296928,3357.6,3357.5,3.25976175]
[1735493793876,1.80296928,3357.6,3357.5,2.73911954]
[1735493794077,6.80296928,3357.6,3357.5,2.73911954]
[1735493794375,6.80296928,3357.6,3357.1,7.01964262]
[1735493794575,0.29838,3357.2,3357.1,7.01964262]
[1735493795882,4.27391928,3357.4,3356.8,1.06611928]
[1735493795883,0.29841,3356.9,3356.8,1.06611928]
[1735493796284,0.29842,3356.8,3356.7,0.29842]
[1735493796478,0.75722,3356.8,3356.7,0.29842]
[1735493796783,0.75722,3356.8,3356.7,0.29843]
[1735493797380,0.4588,3356.8,3356.7,0.29843]
[1735493798785,0.4588,3356.8,3356.5,2.25411062]
[1735493799084,0.75722,3356.8,3356.5,2.25411062]
[1735493799279,0.75722,3356.8,3356.7,0.29843]
[1735493799985,0.75722,3356.8,3356.5,2.25411062]
[1735493800181,0.4588,3356.8,3356.5,2.25411062]
[1735493800485,0.29844,3356.6,3356.5,2.55255062]
[1735493800787,0.29844,3356.6,3356.5,2.25411062]
[1735493800979,0.29844,3356.6,3356.5,2.55256062]
[1735493801180,0.29843,3356.7,3356.6,0.29843]
[1735493801374,0.29841,3356.9,3356.8,0.29841]
[1735493801579,0.29841,3356.9,3356.8,2.55252062]
[1735493803083,3.2078,3357.0,3356.8,2.25411062]
[1735493803284,3.50621,3357.0,3356.9,0.72471]
[1735493804592,0.29841,3357.0,3356.9,0.72471]
[1735493805981,3.2078,3357.1,3356.9,0.4263]
[1735493806187,3.2078,3357.1,3357.0,1.188]
[1735493807184,0.29838,3357.3,3357.0,4.0974]
[1735493807384,0.29838,3357.3,3357.2,0.29838]
[1735493807584,0.29838,3357.3,3357.1,2.25411062]
[1735493807786,0.29837,3357.4,3357.2,0.29838]
[1735493807986,0.29837,3357.3,3357.2,0.29838]
[1735493808486,0.29833,3357.8,3357.3,0.29837]
[1735493808686,3.2078,3357.9,3357.4,0.4429]
[1735493808886,0.29836,3357.5,3357.4,0.74126]
[1735493809184,0.29834,3357.7,3357.6,0.29835]
[1735493809392,0.29835,3357.6,3357.5,0.29835]
[1735493809591,3.2078,3357.9,3357.4,2.69701062]
[1735493809893,0.29835,3357.6,3357.5,0.29835]
[1735493810396,0.29836,3357.5,3357.4,6.20317062]
[1735493810696,0.29836,3357.5,3357.4,5.90481062]
[1735493810895,3.2078,3357.7,3357.3,1.194]
[1735493811101,0.29837,3357.4,3357.3,1.194]
[1735493812783,0.29838,3357.2,3357.1,0.4427]
[1735493818001,3.2078,3357.3,3356.3,3.2078]
[1735493818191,0.29844,3356.6,3356.4,5.10706062]
[1735493818391,0.29844,3356.6,3356.5,0.29845]
[1735493818806,0.29844,3356.7,3356.5,0.29845]
[1735493818995,0.2984,3357.0,3356.5,0.29845]
[1735493819298,0.29843,3356.7,3356.5,0.29845]
[1735493819601,0.29845,3356.5,3356.4,5.10706062]
[1735493820103,0.29844,3356.6,3356.5,0.29845]
[1735493820799,0.29843,3356.7,3356.5,0.29845]
[1735493822097,5.54886396,3357.3,3356.4,4.80861062]
[1735493822399,0.2984,3357.1,3357.0,2.25411062]
[1735493822599,0.2984,3357.1,3357.0,2.67791062]
[1735493822803,0.2984,3357.1,3357.0,3.59591062]
[1735493824903,0.2984,3357.1,3357.0,3.89431062]
[1735493825799,0.2984,3357.1,3357.0,3.59591062]
[1735493826002,0.2984,3357.1,3357.0,1.3418]
[1735493826199,3.2078,3357.3,3356.8,3.2078]
[1735493826502,0.29841,3356.9,3356.8,3.2078]
[1735493826701,3.2078,3356.9,3356.4,3.2078]
[1735493826899,0.29845,3356.5,3356.4,3.2078]
[1735493828196,0.29845,3356.4,3355.9,1.14969]
[1735493828402,0.29849,3356.1,3355.9,1.14969]
[1735493828801,0.4464,3356.4,3355.9,0.8512]
[1735493829000,0.29849,3356.0,3355.9,0.8512]
[1735493829405,0.2985,3356.0,3355.8,2.55262062]
[1735493829604,0.4464,3355.9,3355.8,2.55262062]
[1735493830496,0.4464,3355.9,3355.8,2.25411062]
[1735493830702,0.29851,3355.8,3355.7,3.2078]
[1735493832606,0.29852,3355.7,3355.5,3.43604062]
[1735493833703,0.74491,3355.9,3355.7,0.29851]
[1735493833900,2.34106396,3356.3,3355.8,2.25411062]
[1735493834101,2.76296396,3356.3,3355.8,2.25411062]
[1735493834295,3.06143396,3356.3,3356.1,2.55258062]
[1735493834499,3.06143396,3356.3,3356.2,0.869]
[1735493834699,2.34106396,3356.3,3356.2,0.869]
[1735493834903,2.34106396,3356.3,3356.2,1.58987]
[1735493835102,1.64186396,3356.3,3356.2,1.58987]
[1735493835301,3.50581777,3356.5,3356.2,1.2914]
[1735493835604,3.50581777,3356.5,3356.4,2.55256062]
[1735493835807,3.50581777,3356.9,3356.8,0.29842]
[1735493836101,3.50581777,3356.9,3356.8,2.55253062]
[1735493837208,0.29839,3357.2,3357.0,0.29839]
[1735493837506,3.50617,3357.4,3357.2,0.29838]
[1735493837896,0.29838,3357.3,3357.1,2.55250062]
[1735493838498,0.4648,3357.7,3357.1,5.46191062]
[1735493838698,0.29837,3357.4,3357.2,0.29838]
[1735493838899,0.29835,3357.6,3357.2,0.29838]
[1735493839200,0.29837,3357.4,3357.2,0.29838]
[1735493841807,0.4648,3357.7,3357.1,5.46191062]
[1735493842110,0.29836,3357.6,3357.1,5.46191062]
[1735493842311,0.29835,3357.6,3357.1,5.46191062]
[1735493842613,0.29836,3357.5,3357.3,0.29837]
[1735493843107,0.29837,3357.4,3357.2,0.29838]
[1735493844705,0.4648,3357.7,3357.1,5.46191062]
[1735493844900,0.29838,3357.2,3357.1,3.2078]
[1735493845206,0.29838,3357.2,3357.0,1.1622]
[1735493845207,0.29839,3357.2,3357.0,1.1622]
[1735493849014,3.6454,3357.6,3357.0,0.8638]
[1735493849209,3.6454,3357.6,3357.2,0.29838]
[1735493849210,0.29837,3357.4,3357.2,0.29838]
[1735493849416,0.29837,3357.4,3357.3,0.29837]
[1735493849608,0.29837,3357.4,3357.2,0.29838]
[1735493850011,0.29837,3357.4,3357.0,0.8638]
[1735493850318,3.2078,3357.6,3357.0,0.8638]
[1735493850510,0.29839,3357.2,3357.0,1.16219]
[1735493851508,0.29839,3357.2,3357.1,0.29839]
[1735493854819,3.2078,3357.6,3357.0,0.8638]
[1735493855120,0.29838,3357.3,3357.2,0.29838]
[1735493856117,0.29839,3357.2,3357.1,0.29839]
[1735493856516,0.2984,3357.0,3356.9,1.91641]
[1735493856817,0.29841,3356.9,3356.8,10.22620625]
[1735493858015,0.29841,3356.9,3356.8,3.2078]
[1735493859116,0.8777,3357.0,3356.7,0.29843]
[1735493859417,0.29842,3356.9,3356.7,0.29843]
[1735493860008,0.29842,3356.8,3356.7,0.29843]
[1735493860212,0.29842,3356.8,3356.5,2.68961062]
[1735493860213,0.29841,3356.9,3356.8,0.29842]
[1735493860411,0.29842,3356.8,3356.7,0.29842]
[1735493861622,0.29843,3356.7,3356.5,2.98805062]
[1735493862017,0.29844,3356.6,3356.5,2.68961062]
[1735493862418,0.29844,3356.6,3356.5,2.98806062]
[1735493862917,0.29844,3356.6,3356.5,2.68961062]
[1735493863121,0.29846,3356.3,3356.2,10.22620625]
[1735493863624,0.29846,3356.3,3356.2,3.2078]
[1735493864619,0.445,3356.4,3356.1,7.01840625]
[1735493864620,0.29847,3356.2,3356.1,7.01840625]
[1735493865425,0.29849,3356.0,3355.9,0.2985]
[1735493865819,0.445,3356.4,3355.7,7.44000625]
[1735493866015,0.445,3356.4,3355.9,2.25411062]
[1735493866220,0.445,3356.4,3356.2,2.25411062]
[1735493866421,0.74346,3356.4,3356.3,0.449]
[1735493866826,0.29848,3356.2,3356.0,0.29849]
[1735493868332,0.29849,3356.1,3355.9,3.00160062]
[1735493868929,0.29849,3356.0,3355.9,3.00160062]
[1735493869327,0.29849,3356.0,3355.9,2.70311062]
[1735493870127,0.8764,3356.4,3355.9,2.70311062]
[1735493870327,0.29849,3356.1,3355.9,3.00161062]
[1735493870633,0.29849,3356.0,3355.9,2.70311062]
[1735493870832,4.0842,3356.4,3355.8,3.2078]
[1735493871028,0.2985,3355.9,3355.8,3.2078]
[1735493871832,0.29853,3355.6,3355.5,7.01840625]
[1735493872933,0.29855,3355.4,3355.2,0.29856]
[1735493873230,0.4605,3355.7,3355.3,3.2078]
[1735493873432,3.2078,3356.2,3355.5,2.25411062]
[1735493873731,0.2985,3355.9,3355.7,0.29851]
[1735493874323,0.29851,3355.8,3355.6,1.60972]
[1735493874532,0.29852,3355.7,3355.6,1.60972]
[1735493875329,0.29852,3355.7,3355.6,1.3112]
[1735493876435,0.29852,3355.7,3355.6,1.60973]
[1735493877729,0.29852,3355.7,3355.6,1.3112]
[1735493877937,0.29852,3355.7,3355.6,0.4331]
[1735493878534,0.4644,3356.1,3355.3,3.2078]
[1735493878732,0.29854,3355.4,3355.3,3.2078]
[1735493878931,0.29854,3355.4,3355.3,3.50635]
[1735493879130,0.29854,3355.5,3355.3,3.50635]
[1735493879331,0.8718,3355.6,3355.3,3.2078]
[1735493879635,0.29854,3355.4,3355.3,3.2078]
[1735493880231,0.29854,3355.4,3355.3,0.29855]
[1735493880431,0.8718,3355.6,3355.3,0.29855]
[1735493880627,0.29854,3355.4,3355.3,0.29855]
[1735493881341,0.29854,3355.5,3355.4,0.29854]
[1735493881642,0.29853,3355.5,3355.3,3.50635]
[1735493881844,0.29855,3355.3,3355.2,2.25411062]
[1735493882037,0.29856,3355.2,3355.1,1.193]
[1735493882539,0.29857,3355.1,3355.0,0.459]
[1735493882739,0.29859,3354.9,3354.8,3.2078]
[1735493883342,0.2986,3354.8,3354.7,0.4219]
[1735493884143,0.29861,3354.6,3354.5,0.4588]
[1735493884842,0.2986,3354.8,3354.7,0.29861]
[1735493885043,0.29859,3354.9,3354.8,0.2986]
[1735493885640,0.8865,3355.3,3354.6,2.25411062]
[1735493885837,0.74641,3355.2,3354.5,0.4588]
[1735493886038,0.8865,3355.3,3354.6,2.25411062]
[1735493886244,0.29858,3355.0,3354.8,0.29859]
[1735493886442,0.29858,3355.0,3354.9,0.8578]
[1735493886845,0.8865,3355.3,3355.0,0.29858]
[1735493887149,0.29852,3355.7,3355.5,0.29853]
[1735493887353,0.29852,3355.7,3355.5,2.55264062]
[1735493887642,0.29853,3355.6,3355.5,2.25411062]
[1735493887847,0.29853,3355.6,3355.5,2.69481062]
[1735493888241,0.29853,3355.6,3355.5,0.4407]
[1735493888641,0.29851,3355.8,3355.5,0.73923]
[1735493888950,0.29852,3355.7,3355.5,0.73923]
[1735493889136,0.29852,3355.7,3355.6,0.4206]
[1735493889541,0.4405,3356.1,3355.6,0.8863]
[1735493889740,0.29848,3356.1,3355.9,0.29849]
[1735493890146,3.2078,3356.2,3355.6,0.8863]
[1735493890147,0.29852,3355.7,3355.6,0.8863]
[1735493890748,0.29852,3355.7,3355.6,0.4206]
[1735493891350,0.29851,3355.8,3355.6,0.4206]
[1735493891548,0.29851,3355.8,3355.6,0.71912]
[1735493892851,0.29851,3355.8,3355.6,3.92692]
[1735493893055,0.2985,3355.9,3355.6,3.6284]
[1735493893250,0.2985,3355.9,3355.8,0.29851]
[1735493894250,0.2985,3355.9,3355.7,0.29851]
[1735493894452,0.29851,3355.8,3355.7,0.29851]
[1735493894955,0.29851,3355.8,3355.6,3.6284]
[1735493895157,3.2078,3356.2,3355.6,3.6284]
[1735493895455,0.29851,3355.8,3355.6,3.92692]
[1735493895752,0.2985,3355.9,3355.7,0.29851]
[1735493896656,0.29852,3355.7,3355.6,3.6284]
[1735493898658,0.29852,3355.7,3355.6,0.4206]
[1735493898955,0.8859,3355.8,3355.6,0.4206]
[1735493899158,0.29851,3355.9,3355.7,0.29852]
[1735493899359,0.4309,3356.1,3355.7,0.29852]
[1735493899556,0.29851,3355.9,3355.7,0.29852]
[1735493900860,0.4309,3356.1,3355.8,2.25411062]
[1735493901062,3.2078,3356.2,3356.1,0.29848]
[1735493901362,3.2078,3356.2,3355.9,0.74309]
[1735493901363,0.29848,3356.1,3355.9,0.74309]
[1735493901551,0.29848,3356.1,3356.0,0.29849]
[1735493901958,0.29847,3356.2,3356.1,0.29848]
[1735493902156,0.29847,3356.2,3356.0,0.29849]
[1735493902355,0.29847,3356.2,3356.1,0.433]
[1735493903053,0.29847,3356.2,3356.1,1.15408]
[1735493904157,0.29847,3356.3,3356.1,1.15408]
[1735493905558,0.4367,3356.5,3356.1,3.10971062]
[1735493905866,0.29844,3356.6,3356.1,3.10971062]
[1735493906159,3.50623,3356.7,3356.5,0.29844]
[1735493906362,0.29843,3356.7,3356.6,0.4432]
[1735493910259,0.8737,3356.9,3356.4,5.46191062]
[1735493910567,0.29845,3356.5,3356.4,5.46191062]
[1735493910760,0.29845,3356.5,3356.4,2.25411062]
[1735493911361,0.29845,3356.5,3356.2,1.6141]
[1735493911362,0.29846,3356.3,3356.2,1.91257]
[1735493911666,3.2078,3356.8,3356.3,0.29846]
[1735493911667,0.29846,3356.4,3356.3,0.29846]
[1735493914261,4.0815,3356.9,3356.3,0.29846]
[1735493914862,0.29845,3356.4,3356.3,0.29846]
[1735493916970,0.29846,3356.3,3356.2,4.8219]